[Event "Titled Tuesday Blitz May 31 Late 2022"]
[White "De La Colina, Nicolas"]
[Black "Matlakov, Maxim"]
[WhiteFideId "30946921"]
[BlackFideId "4168003"]
[WhiteElo "2046"]
[BlackElo "2669"]
[Result "1-0"]
[Round "02"]
[TimeControl "180+1"]
[Date "2022.05.31"]
[WhiteClock "0:01:34"]
[BlackClock "0:01:09"]

1. e4 {[%clk 0:03:00]}  c5 {[%clk 0:02:59]} 2. c3 {[%clk 0:02:58]}  e6 {[%clk 0:02:58]} 3. Nf3 {[%clk 0:02:58]}  d5 {[%clk 0:02:58]} 4. exd5 {[%clk 0:02:57]}  exd5 {[%clk 0:02:58]} 5. d4 {[%clk 0:02:57]}  Nc6 {[%clk 0:02:58]} 6. Bb5 {[%clk 0:02:57]}  Bd6 {[%clk 0:02:58]} 7. O-O {[%clk 0:02:55]}  Ne7 {[%clk 0:02:55]} 8. Nbd2 {[%clk 0:02:54]}  cxd4 {[%clk 0:02:55]} 9. Nxd4 {[%clk 0:02:54]}  O-O {[%clk 0:02:54]} 10. N2f3 {[%clk 0:02:53]}  h6 {[%clk 0:02:50]} 11. Re1 {[%clk 0:02:50]}  a6 {[%clk 0:02:49]} 12. Bd3 {[%clk 0:02:48]}  Bg4 {[%clk 0:02:48]} 13. Be2 {[%clk 0:02:37]}  Re8 {[%clk 0:02:45]} 14. Be3 {[%clk 0:02:28]}  Bc7 {[%clk 0:02:36]} 15. g3 {[%clk 0:02:21]}  Qd7 {[%clk 0:02:27]} 16. Bf1 {[%clk 0:02:19]}  Nxd4 {[%clk 0:02:23]} 17. Bxd4 {[%clk 0:02:15]}  Nc6 {[%clk 0:02:21]} 18. Bg2 {[%clk 0:02:10]}  Qf5 {[%clk 0:02:09]} 19. Re3 {[%clk 0:02:02]}  Rxe3 {[%clk 0:02:05]} 20. fxe3 {[%clk 0:02:00]}  Re8 {[%clk 0:01:55]} 21. Qf1 {[%clk 0:01:51]}  Qh5 {[%clk 0:01:36]} 22. Re1 {[%clk 0:01:48]}  Bf5 {[%clk 0:01:33]} 23. Qf2 {[%clk 0:01:42]}  Be4 {[%clk 0:01:32]} 24. Nd2 {[%clk 0:01:40]}  Bxg2 {[%clk 0:01:32]} 25. Qxg2 {[%clk 0:01:41]}  Nxd4 {[%clk 0:01:22]} 26. cxd4 {[%clk 0:01:42]}  Ba5 {[%clk 0:01:22]} 27. Qe2 {[%clk 0:01:34]}  Qxe2 {[%clk 0:01:14]} 28. Rxe2 {[%clk 0:01:35]}  Bxd2 {[%clk 0:01:14]} 29. Rxd2 {[%clk 0:01:36]}  Rxe3 {[%clk 0:01:14]} 30. Rc2 {[%clk 0:01:35]}  Rd3 {[%clk 0:01:09]} 31. Rc8+ {[%clk 0:01:34]} 1-0


[Site "https://www.chess.com"]

[Event "Titled Tuesday Blitz May 31 Late 2022"]
[White "De Souza, Cristiano Gomes"]
[Black "Leiva, Gianmarco"]
[WhiteFideId "2151758"]
[BlackFideId "3804399"]
[WhiteElo "2068"]
[BlackElo "2323"]
[Result "0-1"]
[Round "02"]
[TimeControl "180+1"]
[Date "2022.06.01"]
[WhiteClock "0:00:09"]
[BlackClock "0:00:12"]

1. d4 {[%clk 0:03:00]}  Nf6 {[%clk 0:03:00]} 2. c4 {[%clk 0:03:00]}  e6 {[%clk 0:03:00]} 3. Nf3 {[%clk 0:03:00]}  d5 {[%clk 0:03:00]} 4. Nc3 {[%clk 0:02:59]}  a6 {[%clk 0:02:59]} 5. Bg5 {[%clk 0:02:58]}  dxc4 {[%clk 0:02:59]} 6. a4 {[%clk 0:02:57]}  c5 {[%clk 0:02:55]} 7. e3 {[%clk 0:02:55]}  Nc6 {[%clk 0:02:55]} 8. Bxc4 {[%clk 0:02:53]}  cxd4 {[%clk 0:02:55]} 9. Nxd4 {[%clk 0:02:53]}  Bd7 {[%clk 0:02:52]} 10. O-O {[%clk 0:02:50]}  Be7 {[%clk 0:02:51]} 11. Rc1 {[%clk 0:02:49]}  O-O {[%clk 0:02:51]} 12. b3 {[%clk 0:02:45]}  Rc8 {[%clk 0:02:49]} 13. Qe2 {[%clk 0:02:42]}  Qa5 {[%clk 0:02:43]} 14. Bxf6 {[%clk 0:02:35]}  Bxf6 {[%clk 0:02:43]} 15. Rfd1 {[%clk 0:02:33]}  Ne5 {[%clk 0:02:28]} 16. Ne4 {[%clk 0:02:29]}  Be7 {[%clk 0:02:22]} 17. Nf3 {[%clk 0:02:20]}  Bc6 {[%clk 0:02:18]} 18. Nxe5 {[%clk 0:02:15]}  Qxe5 {[%clk 0:02:16]} 19. Ng3 {[%clk 0:02:13]}  g6 {[%clk 0:02:12]} 20. Rc2 {[%clk 0:02:04]}  h5 {[%clk 0:02:07]} 21. f4 {[%clk 0:01:52]}  Qa5 {[%clk 0:02:05]} 22. Qd2 {[%clk 0:01:48]}  Qb6 {[%clk 0:02:04]} 23. Be2 {[%clk 0:01:38]}  Qxb3 {[%clk 0:01:48]} 24. Rdc1 {[%clk 0:01:13]}  Rfd8 {[%clk 0:01:15]} 25. Qc3 {[%clk 0:01:12]}  Qxc3 {[%clk 0:00:59]} 26. Rxc3 {[%clk 0:01:12]}  Bd7 {[%clk 0:00:57]} 27. Rxc8 {[%clk 0:01:10]}  Rxc8 {[%clk 0:00:57]} 28. Rxc8+ {[%clk 0:01:10]}  Bxc8 {[%clk 0:00:57]} 29. Ne4 {[%clk 0:01:08]}  Bd7 {[%clk 0:00:56]} 30. Bd1 {[%clk 0:01:05]}  Bc6 {[%clk 0:00:56]} 31. Nd2 {[%clk 0:01:04]}  Bc5 {[%clk 0:00:55]} 32. Kf2 {[%clk 0:01:03]}  Kf8 {[%clk 0:00:56]} 33. Nc4 {[%clk 0:01:02]}  Ke7 {[%clk 0:00:55]} 34. Bc2 {[%clk 0:01:00]}  b5 {[%clk 0:00:54]} 35. axb5 {[%clk 0:01:00]}  axb5 {[%clk 0:00:55]} 36. Ne5 {[%clk 0:00:59]}  Bd5 {[%clk 0:00:53]} 37. g3 {[%clk 0:00:57]}  b4 {[%clk 0:00:53]} 38. h3 {[%clk 0:00:55]}  b3 {[%clk 0:00:53]} 39. Bb1 {[%clk 0:00:55]}  Bd6 {[%clk 0:00:42]} 40. Nf3 {[%clk 0:00:48]}  Bc7 {[%clk 0:00:36]} 41. Nd2 {[%clk 0:00:47]}  Ba5 {[%clk 0:00:35]} 42. Ne4 {[%clk 0:00:43]}  Kd8 {[%clk 0:00:26]} 43. Ke2 {[%clk 0:00:36]}  Bc4+ {[%clk 0:00:24]} 44. Kf2 {[%clk 0:00:32]}  Bb4 {[%clk 0:00:22]} 45. Ng5 {[%clk 0:00:26]}  Ke8 {[%clk 0:00:22]} 46. Nf3 {[%clk 0:00:25]}  Ke7 {[%clk 0:00:15]} 47. g4 {[%clk 0:00:24]}  hxg4 {[%clk 0:00:13]} 48. hxg4 {[%clk 0:00:22]}  Bd5 {[%clk 0:00:13]} 49. e4 {[%clk 0:00:20]}  Bc5+ {[%clk 0:00:13]} 50. Kg3 {[%clk 0:00:20]}  Bc4 {[%clk 0:00:12]} 51. Nd2 {[%clk 0:00:18]}  Bb5 {[%clk 0:00:06]} 52. Nxb3 {[%clk 0:00:17]}  Bb4 {[%clk 0:00:07]} 53. Nc1 {[%clk 0:00:15]}  Be1+ {[%clk 0:00:07]} 54. Kf3 {[%clk 0:00:13]}  Bd2 {[%clk 0:00:07]} 55. Nd3 {[%clk 0:00:12]}  Bc6 {[%clk 0:00:07]} 56. Ke2 {[%clk 0:00:10]}  Bc3 {[%clk 0:00:07]} 57. Ke3 {[%clk 0:00:10]}  Ba5 {[%clk 0:00:07]} 58. Ba2 {[%clk 0:00:09]}  Bb6+ {[%clk 0:00:08]} 59. Ke2 {[%clk 0:00:08]}  Bxe4 {[%clk 0:00:08]} 60. Ne5 {[%clk 0:00:09]}  Bc7 {[%clk 0:00:07]} 61. Nxf7 {[%clk 0:00:08]}  Kxf7 {[%clk 0:00:07]} 62. Bxe6+ {[%clk 0:00:09]}  Kxe6 {[%clk 0:00:08]} 63. f5+ {[%clk 0:00:10]}  Bxf5 {[%clk 0:00:08]} 64. gxf5+ {[%clk 0:00:11]}  Kxf5 {[%clk 0:00:09]} 65. Kd3 {[%clk 0:00:11]}  g5 {[%clk 0:00:09]} 66. Ke3 {[%clk 0:00:07]}  g4 {[%clk 0:00:10]} 67. Kf2 {[%clk 0:00:08]}  Kf4 {[%clk 0:00:10]} 68. Kg1 {[%clk 0:00:09]}  g3 {[%clk 0:00:11]} 69. Kh1 {[%clk 0:00:09]}  Kf3 {[%clk 0:00:11]} 70. Kg1 {[%clk 0:00:09]}  Bb6+ {[%clk 0:00:11]} 71. Kh1 {[%clk 0:00:09]}  g2+ {[%clk 0:00:12]} 0-1


[Site "https://www.chess.com"]

[Event "Titled Tuesday Blitz May 31 Late 2022"]
[White "Diaz Rosas, Julio Cesar"]
[Black "Ivic, Velimir"]
[WhiteFideId "5105099"]
[BlackFideId "950122"]
[WhiteElo "2278"]
[BlackElo "2610"]
[Result "0-1"]
[Round "02"]
[TimeControl "180+1"]
[Date "2022.05.31"]
[WhiteClock "0:00:45"]
[BlackClock "0:01:58"]

1. d4 {[%clk 0:03:00]}  Nf6 {[%clk 0:02:58]} 2. Nc3 {[%clk 0:03:00]}  d5 {[%clk 0:02:58]} 3. Bf4 {[%clk 0:03:00]}  Bf5 {[%clk 0:02:58]} 4. f3 {[%clk 0:02:58]}  e6 {[%clk 0:02:57]} 5. g4 {[%clk 0:02:56]}  Bg6 {[%clk 0:02:58]} 6. Bg3 {[%clk 0:02:46]}  Bb4 {[%clk 0:02:45]} 7. e3 {[%clk 0:02:44]}  O-O {[%clk 0:02:42]} 8. Bd3 {[%clk 0:02:43]}  c5 {[%clk 0:02:42]} 9. Ne2 {[%clk 0:02:41]}  Nc6 {[%clk 0:02:41]} 10. a3 {[%clk 0:02:39]}  Ba5 {[%clk 0:02:40]} 11. dxc5 {[%clk 0:02:35]}  d4 {[%clk 0:02:39]} 12. b4 {[%clk 0:02:24]}  dxc3 {[%clk 0:02:34]} 13. bxa5 {[%clk 0:02:22]}  Qxa5 {[%clk 0:02:35]} 14. Bd6 {[%clk 0:02:20]}  Rfd8 {[%clk 0:02:33]} 15. h4 {[%clk 0:02:15]}  Nd5 {[%clk 0:02:23]} 16. Kf2 {[%clk 0:02:12]}  b6 {[%clk 0:02:22]} 17. Bxg6 {[%clk 0:02:06]}  hxg6 {[%clk 0:02:22]} 18. h5 {[%clk 0:02:07]}  bxc5 {[%clk 0:02:21]} 19. hxg6 {[%clk 0:02:01]}  Rxd6 {[%clk 0:02:21]} 20. Qf1 {[%clk 0:01:31]}  fxg6 {[%clk 0:02:20]} 21. Qh3 {[%clk 0:01:29]}  Kf7 {[%clk 0:02:20]} 22. Rad1 {[%clk 0:01:24]}  c4 {[%clk 0:02:19]} 23. f4 {[%clk 0:01:17]}  Rad8 {[%clk 0:02:15]} 24. f5 {[%clk 0:01:10]}  exf5 {[%clk 0:02:14]} 25. gxf5 {[%clk 0:01:11]}  Nde7 {[%clk 0:02:07]} 26. fxg6+ {[%clk 0:01:03]}  Rxg6 {[%clk 0:02:08]} 27. Nf4 {[%clk 0:01:01]}  Rh6 {[%clk 0:02:01]} 28. Qg2 {[%clk 0:00:53]}  Qf5 {[%clk 0:02:00]} 29. Rxh6 {[%clk 0:00:46]}  Qxc2+ {[%clk 0:01:59]} 30. Kf3 {[%clk 0:00:45]}  Qxg2+ {[%clk 0:01:58]} 0-1


[Site "https://www.chess.com"]

[Event "Titled Tuesday Blitz May 31 Late 2022"]
[White "Djabri,Massinas"]
[Black "Mahdavi, Reza"]
[WhiteFideId "7905726"]
[BlackFideId "12595926"]
[WhiteElo "1941"]
[BlackElo "2253"]
[Result "1/2-1/2"]
[Round "02"]
[TimeControl "180+1"]
[Date "2022.06.01"]
[WhiteClock "0:00:08"]
[BlackClock "0:00:14"]

1. d4 {[%clk 0:03:00]}  Nf6 {[%clk 0:02:59]} 2. Bf4 {[%clk 0:02:56]}  g6 {[%clk 0:02:58]} 3. e3 {[%clk 0:02:56]}  Bg7 {[%clk 0:02:58]} 4. Nf3 {[%clk 0:02:57]}  O-O {[%clk 0:02:59]} 5. h3 {[%clk 0:02:57]}  d6 {[%clk 0:03:00]} 6. Be2 {[%clk 0:02:58]}  Nc6 {[%clk 0:03:00]} 7. Bh2 {[%clk 0:02:58]}  Nd7 {[%clk 0:03:01]} 8. O-O {[%clk 0:02:58]}  h6 {[%clk 0:03:01]} 9. c3 {[%clk 0:02:59]}  e5 {[%clk 0:03:01]} 10. dxe5 {[%clk 0:02:58]}  dxe5 {[%clk 0:03:02]} 11. Nbd2 {[%clk 0:02:58]}  f5 {[%clk 0:03:02]} 12. Nc4 {[%clk 0:02:59]}  Kh7 {[%clk 0:03:02]} 13. Qc2 {[%clk 0:02:56]}  Qe7 {[%clk 0:03:02]} 14. Rfd1 {[%clk 0:02:56]}  Nb6 {[%clk 0:03:03]} 15. a4 {[%clk 0:02:54]}  Nxc4 {[%clk 0:03:00]} 16. Bxc4 {[%clk 0:02:55]}  Be6 {[%clk 0:03:01]} 17. Qe2 {[%clk 0:02:49]}  a6 {[%clk 0:02:58]} 18. a5 {[%clk 0:02:48]}  Rfd8 {[%clk 0:02:58]} 19. Bg3 {[%clk 0:02:46]}  Qf7 {[%clk 0:02:50]} 20. Bxe6 {[%clk 0:02:43]}  Qxe6 {[%clk 0:02:51]} 21. Rxd8 {[%clk 0:02:30]}  Rxd8 {[%clk 0:02:50]} 22. Rd1 {[%clk 0:02:31]}  Rxd1+ {[%clk 0:02:49]} 23. Qxd1 {[%clk 0:02:32]}  Nxa5 {[%clk 0:02:49]} 24. Qd8 {[%clk 0:02:33]}  Qd6 {[%clk 0:02:44]} 25. Qc8 {[%clk 0:02:32]}  b5 {[%clk 0:02:33]} 26. h4 {[%clk 0:02:14]}  f4 {[%clk 0:02:23]} 27. exf4 {[%clk 0:01:58]}  exf4 {[%clk 0:02:22]} 28. Bxf4 {[%clk 0:01:48]}  Qxf4 {[%clk 0:02:23]} 29. Qxa6 {[%clk 0:01:48]}  Nc4 {[%clk 0:02:13]} 30. Qxb5 {[%clk 0:01:48]}  Ne5 {[%clk 0:02:12]} 31. Nxe5 {[%clk 0:01:30]}  Bxe5 {[%clk 0:02:12]} 32. Qd7+ {[%clk 0:01:26]}  Bg7 {[%clk 0:02:12]} 33. g3 {[%clk 0:01:17]}  Qc1+ {[%clk 0:02:13]} 34. Kg2 {[%clk 0:01:16]}  c5 {[%clk 0:02:01]} 35. h5 {[%clk 0:01:14]}  Qc2 {[%clk 0:01:55]} 36. hxg6+ {[%clk 0:01:10]}  Qxg6 {[%clk 0:01:56]} 37. Qb7 {[%clk 0:01:01]}  Qf5 {[%clk 0:01:47]} 38. Kg1 {[%clk 0:00:51]}  h5 {[%clk 0:01:44]} 39. Kg2 {[%clk 0:00:50]}  h4 {[%clk 0:01:41]} 40. gxh4 {[%clk 0:00:51]}  Qg4+ {[%clk 0:01:41]} 41. Kf1 {[%clk 0:00:52]}  Qxh4 {[%clk 0:01:40]} 42. Kg2 {[%clk 0:00:52]}  Qg4+ {[%clk 0:01:31]} 43. Kf1 {[%clk 0:00:52]}  c4 {[%clk 0:01:26]} 44. Ke1 {[%clk 0:00:42]}  Kg6 {[%clk 0:01:16]} 45. Qc6+ {[%clk 0:00:38]}  Bf6 {[%clk 0:01:13]} 46. Qe8+ {[%clk 0:00:37]}  Kg7 {[%clk 0:01:13]} 47. Qe2 {[%clk 0:00:22]}  Qf4 {[%clk 0:01:08]} 48. Qd2 {[%clk 0:00:18]}  Qe4+ {[%clk 0:01:08]} 49. Kd1 {[%clk 0:00:17]}  Qb1+ {[%clk 0:00:53]} 50. Ke2 {[%clk 0:00:17]}  Kg6 {[%clk 0:00:53]} 51. f4 {[%clk 0:00:14]}  Qe4+ {[%clk 0:00:53]} 52. Qe3 {[%clk 0:00:12]}  Qc2+ {[%clk 0:00:42]} 53. Qd2 {[%clk 0:00:12]}  Qb1 {[%clk 0:00:43]} 54. Kf3 {[%clk 0:00:09]}  Qf1+ {[%clk 0:00:41]} 55. Ke4 {[%clk 0:00:07]}  Qh1+ {[%clk 0:00:39]} 56. Ke3 {[%clk 0:00:06]}  Kh5 {[%clk 0:00:26]} 57. Qe2+ {[%clk 0:00:05]}  Kh6 {[%clk 0:00:26]} 58. Qxc4 {[%clk 0:00:05]}  Qc1+ {[%clk 0:00:26]} 59. Ke4 {[%clk 0:00:05]}  Qxb2 {[%clk 0:00:26]} 60. Kd5 {[%clk 0:00:05]}  Bxc3 {[%clk 0:00:24]} 61. Qc6+ {[%clk 0:00:06]}  Bf6 {[%clk 0:00:24]} 62. Qc4 {[%clk 0:00:06]}  Qd2+ {[%clk 0:00:23]} 63. Ke6 {[%clk 0:00:06]}  Bg7 {[%clk 0:00:17]} 64. Qe4 {[%clk 0:00:06]}  Qa2+ {[%clk 0:00:15]} 65. Kf5 {[%clk 0:00:07]}  Qf7+ {[%clk 0:00:15]} 66. Kg4 {[%clk 0:00:07]}  Qd7+ {[%clk 0:00:14]} 67. Qf5 {[%clk 0:00:06]}  Qd1+ {[%clk 0:00:15]} 68. Kg3 {[%clk 0:00:05]}  Qg1+ {[%clk 0:00:14]} 69. Kf3 {[%clk 0:00:06]}  Qf1+ {[%clk 0:00:14]} 70. Kg4 {[%clk 0:00:07]}  Qe2+ {[%clk 0:00:13]} 71. Kh4 {[%clk 0:00:07]}  Qe7+ {[%clk 0:00:11]} 72. Qg5+ {[%clk 0:00:06]}  Qxg5+ {[%clk 0:00:11]} 73. fxg5+ {[%clk 0:00:07]}  Kg6 {[%clk 0:00:11]} 74. Kg3 {[%clk 0:00:08]}  Bf8 {[%clk 0:00:12]} 75. Kf3 {[%clk 0:00:08]}  Be7 {[%clk 0:00:13]} 76. Kg2 {[%clk 0:00:08]}  Bxg5 {[%clk 0:00:14]} 1/2-1/2


[Site "https://www.chess.com"]

[Event "Titled Tuesday Blitz May 31 Late 2022"]
[White "Donchenko, Alexander"]
[Black "Manukian, Artak"]
[WhiteFideId "24603295"]
[BlackFideId "13301373"]
[WhiteElo "2572"]
[BlackElo "2567"]
[Result "1-0"]
[Round "02"]
[TimeControl "180+1"]
[Date "2022.05.31"]
[WhiteClock "0:02:22"]
[BlackClock "0:02:14"]

1. d4 {[%clk 0:02:57]}  d5 {[%clk 0:02:59]} 2. Nf3 {[%clk 0:02:57]}  Nf6 {[%clk 0:02:59]} 3. c4 {[%clk 0:02:57]}  dxc4 {[%clk 0:02:58]} 4. e3 {[%clk 0:02:57]}  e6 {[%clk 0:02:58]} 5. Bxc4 {[%clk 0:02:58]}  c5 {[%clk 0:02:58]} 6. O-O {[%clk 0:02:58]}  a6 {[%clk 0:02:59]} 7. Nc3 {[%clk 0:02:58]}  b5 {[%clk 0:02:58]} 8. Be2 {[%clk 0:02:58]}  Bb7 {[%clk 0:02:57]} 9. dxc5 {[%clk 0:02:58]}  Bxc5 {[%clk 0:02:55]} 10. Qxd8+ {[%clk 0:02:58]}  Kxd8 {[%clk 0:02:56]} 11. Nd2 {[%clk 0:02:52]}  Ke7 {[%clk 0:02:49]} 12. Nb3 {[%clk 0:02:47]}  Ba7 {[%clk 0:02:40]} 13. Na5 {[%clk 0:02:45]}  Bd5 {[%clk 0:02:31]} 14. Nxd5+ {[%clk 0:02:39]}  Nxd5 {[%clk 0:02:26]} 15. e4 {[%clk 0:02:39]}  Nb4 {[%clk 0:02:20]} 16. a4 {[%clk 0:02:28]}  N8c6 {[%clk 0:02:17]} 17. axb5 {[%clk 0:02:25]}  axb5 {[%clk 0:02:15]} 18. Nxc6+ {[%clk 0:02:21]}  Nxc6 {[%clk 0:02:15]} 19. Bxb5 {[%clk 0:02:21]}  Bxf2+ {[%clk 0:02:14]} 20. Kxf2 {[%clk 0:02:21]}  Rxa1 {[%clk 0:02:14]} 21. Bg5+ {[%clk 0:02:22]} 1-0


[Site "https://www.chess.com"]

[Event "Titled Tuesday Blitz May 31 Late 2022"]
[White "Drygalov, Andrey"]
[Black "Souleidis, Georgios"]
[WhiteFideId "24171735"]
[BlackFideId "4206827"]
[WhiteElo "2540"]
[BlackElo "2401"]
[Result "1-0"]
[Round "02"]
[TimeControl "180+1"]
[Date "2022.05.31"]
[WhiteClock "0:00:39"]
[BlackClock "0:00:17"]

1. e4 {[%clk 0:02:59]}  e5 {[%clk 0:02:59]} 2. Nf3 {[%clk 0:02:58]}  d6 {[%clk 0:02:58]} 3. d4 {[%clk 0:02:57]}  Bg4 {[%clk 0:02:58]} 4. dxe5 {[%clk 0:02:57]}  Nd7 {[%clk 0:02:59]} 5. exd6 {[%clk 0:02:56]}  Bxd6 {[%clk 0:02:59]} 6. Be2 {[%clk 0:02:56]}  Qe7 {[%clk 0:03:00]} 7. Nc3 {[%clk 0:02:43]}  O-O-O {[%clk 0:02:58]} 8. O-O {[%clk 0:02:44]}  Ngf6 {[%clk 0:02:58]} 9. Nd4 {[%clk 0:02:33]}  Bxe2 {[%clk 0:02:48]} 10. Qxe2 {[%clk 0:02:29]}  Qe5 {[%clk 0:02:34]} 11. Nf3 {[%clk 0:02:20]}  Qh5 {[%clk 0:02:34]} 12. h3 {[%clk 0:02:17]}  Rhe8 {[%clk 0:02:34]} 13. Re1 {[%clk 0:02:05]}  h6 {[%clk 0:02:28]} 14. Nd4 {[%clk 0:01:41]}  Qe5 {[%clk 0:02:23]} 15. Nf3 {[%clk 0:01:41]}  Qh5 {[%clk 0:02:23]} 16. Nh2 {[%clk 0:01:30]}  Qg6 {[%clk 0:01:48]} 17. Nf1 {[%clk 0:00:57]}  Kb8 {[%clk 0:01:32]} 18. f3 {[%clk 0:00:54]}  Nh5 {[%clk 0:01:23]} 19. Be3 {[%clk 0:00:53]}  Ng3 {[%clk 0:01:19]} 20. Qf2 {[%clk 0:00:44]}  a6 {[%clk 0:01:17]} 21. Rad1 {[%clk 0:00:41]}  Nxf1 {[%clk 0:01:15]} 22. Qxf1 {[%clk 0:00:41]}  Bg3 {[%clk 0:01:01]} 23. Bf2 {[%clk 0:00:39]}  Be5 {[%clk 0:01:00]} 24. Rd3 {[%clk 0:00:38]}  Nf8 {[%clk 0:00:47]} 25. Red1 {[%clk 0:00:37]}  Rxd3 {[%clk 0:00:44]} 26. Qxd3 {[%clk 0:00:38]}  Ne6 {[%clk 0:00:40]} 27. a3 {[%clk 0:00:39]}  Nf4 {[%clk 0:00:38]} 28. Qd8+ {[%clk 0:00:38]}  Rxd8 {[%clk 0:00:17]} 29. Rxd8# {[%clk 0:00:39]} 1-0


[Site "https://www.chess.com"]

[Event "Titled Tuesday Blitz May 31 Late 2022"]
[White "Fedoseev, Vladimir"]
[Black "Trost, Edvin"]
[WhiteFideId "24130737"]
[BlackFideId "1729519"]
[WhiteElo "2726"]
[BlackElo "2165"]
[Result "1-0"]
[Round "02"]
[TimeControl "180+1"]
[Date "2022.05.31"]
[WhiteClock "0:00:17"]
[BlackClock "0:00:08"]

1. d4 {[%clk 0:02:42]}  d5 {[%clk 0:02:53]} 2. Nf3 {[%clk 0:02:42]}  Nf6 {[%clk 0:02:53]} 3. Bf4 {[%clk 0:02:43]}  c5 {[%clk 0:02:48]} 4. e3 {[%clk 0:02:41]}  Nc6 {[%clk 0:02:49]} 5. Nbd2 {[%clk 0:02:40]}  Bf5 {[%clk 0:02:46]} 6. c3 {[%clk 0:02:39]}  e6 {[%clk 0:02:45]} 7. Be2 {[%clk 0:02:38]}  Bd6 {[%clk 0:02:44]} 8. Bg3 {[%clk 0:02:34]}  O-O {[%clk 0:02:44]} 9. Qb3 {[%clk 0:02:20]}  Na5 {[%clk 0:02:28]} 10. Qa4 {[%clk 0:02:19]}  cxd4 {[%clk 0:02:26]} 11. Bxd6 {[%clk 0:02:17]}  dxe3 {[%clk 0:02:23]} 12. fxe3 {[%clk 0:02:12]}  Qxd6 {[%clk 0:02:19]} 13. Qxa5 {[%clk 0:02:12]}  Ng4 {[%clk 0:02:20]} 14. Nf1 {[%clk 0:02:09]}  Rac8 {[%clk 0:02:03]} 15. h3 {[%clk 0:02:07]}  Nf6 {[%clk 0:02:03]} 16. Qb4 {[%clk 0:02:02]}  Qxb4 {[%clk 0:01:58]} 17. cxb4 {[%clk 0:02:01]}  Rc2 {[%clk 0:01:59]} 18. b3 {[%clk 0:02:00]}  Rb2 {[%clk 0:01:55]} 19. Ng3 {[%clk 0:01:56]}  Bg6 {[%clk 0:01:55]} 20. O-O {[%clk 0:01:53]}  Ne4 {[%clk 0:01:54]} 21. Nxe4 {[%clk 0:01:41]}  dxe4 {[%clk 0:01:55]} 22. Nd4 {[%clk 0:01:41]}  e5 {[%clk 0:01:55]} 23. Bc4 {[%clk 0:01:38]}  exd4 {[%clk 0:01:54]} 24. exd4 {[%clk 0:01:39]}  Rd8 {[%clk 0:01:50]} 25. d5 {[%clk 0:01:25]}  b5 {[%clk 0:01:44]} 26. Bxb5 {[%clk 0:01:18]}  Rxd5 {[%clk 0:01:44]} 27. Rfd1 {[%clk 0:01:18]}  Rxd1+ {[%clk 0:01:37]} 28. Rxd1 {[%clk 0:01:17]}  h5 {[%clk 0:01:38]} 29. Bc4 {[%clk 0:01:08]}  Rxa2 {[%clk 0:01:35]} 30. b5 {[%clk 0:01:08]}  e3 {[%clk 0:01:32]} 31. Rd8+ {[%clk 0:01:08]}  Kh7 {[%clk 0:01:31]} 32. Re8 {[%clk 0:01:08]}  Ra1+ {[%clk 0:01:26]} 33. Kh2 {[%clk 0:01:08]}  Re1 {[%clk 0:01:26]} 34. Re7 {[%clk 0:01:08]}  e2 {[%clk 0:01:21]} 35. Kg3 {[%clk 0:01:05]}  Kh6 {[%clk 0:01:11]} 36. Kf2 {[%clk 0:00:57]}  Ra1 {[%clk 0:01:11]} 37. Kxe2 {[%clk 0:00:57]}  Ra2+ {[%clk 0:01:11]} 38. Kf3 {[%clk 0:00:57]}  f6 {[%clk 0:01:11]} 39. Re6 {[%clk 0:00:47]}  Bc2 {[%clk 0:00:44]} 40. Ra6 {[%clk 0:00:33]}  Rb2 {[%clk 0:00:44]} 41. Ra3 {[%clk 0:00:32]}  g6 {[%clk 0:00:39]} 42. Ke3 {[%clk 0:00:32]}  Bd1 {[%clk 0:00:37]} 43. Kd4 {[%clk 0:00:32]}  h4 {[%clk 0:00:31]} 44. Rxa7 {[%clk 0:00:31]}  Rxg2 {[%clk 0:00:32]} 45. b6 {[%clk 0:00:30]}  Rd2+ {[%clk 0:00:26]} 46. Ke3 {[%clk 0:00:23]}  Rd6 {[%clk 0:00:17]} 47. b7 {[%clk 0:00:18]}  Rb6 {[%clk 0:00:17]} 48. Kd4 {[%clk 0:00:09]}  Bf3 {[%clk 0:00:09]} 49. Bd5 {[%clk 0:00:09]}  Bxd5 {[%clk 0:00:08]} 50. Kxd5 {[%clk 0:00:10]}  Rxb3 {[%clk 0:00:06]} 51. Kc6 {[%clk 0:00:10]}  Kg5 {[%clk 0:00:02]} 52. Ra5+ {[%clk 0:00:09]}  Kf4 {[%clk 0:00:01]} 53. Rb5 {[%clk 0:00:10]}  Rc3+ {[%clk 0:00:02]} 54. Kd7 {[%clk 0:00:10]}  Rd3+ {[%clk 0:00:02]} 55. Ke7 {[%clk 0:00:10]}  Re3+ {[%clk 0:00:02]} 56. Kxf6 {[%clk 0:00:09]}  Re8 {[%clk 0:00:01]} 57. b8=Q+ {[%clk 0:00:10]}  Rxb8 {[%clk 0:00:02]} 58. Rxb8 {[%clk 0:00:10]}  Kg3 {[%clk 0:00:02]} 59. Rb3+ {[%clk 0:00:10]}  Kg2 {[%clk 0:00:02]} 60. Kxg6 {[%clk 0:00:11]}  Kh2 {[%clk 0:00:02]} 61. Kg5 {[%clk 0:00:12]}  Kg2 {[%clk 0:00:02]} 62. Kxh4 {[%clk 0:00:13]}  Kf2 {[%clk 0:00:03]} 63. Kg4 {[%clk 0:00:13]}  Ke2 {[%clk 0:00:04]} 64. h4 {[%clk 0:00:14]}  Kd2 {[%clk 0:00:05]} 65. Rf3 {[%clk 0:00:14]}  Kc2 {[%clk 0:00:06]} 66. h5 {[%clk 0:00:14]}  Kd2 {[%clk 0:00:07]} 67. h6 {[%clk 0:00:15]}  Ke2 {[%clk 0:00:08]} 68. h7 {[%clk 0:00:16]}  Kd1 {[%clk 0:00:08]} 69. h8=Q {[%clk 0:00:17]} 1-0


[Site "https://www.chess.com"]